[Event "ETCC Women 2013"]
[Site "Warsaw"]
[Date "2013.11.15"]
[Round "7"]
[White "Szczepkowska-Horowska, Karina"]
[Black "Javakhishvili, Lela"]
[Result "1/2-1/2"]
[ECO "B46"]
[WhiteElo "2382"]
[BlackElo "2423"]
[PlyCount "84"]
[EventDate "2013.??.??"]
[EventCountry "POL"]
[WhiteTeam "Poland"]
[BlackTeam "Georgia"]
[WhiteTeamCountry "POL"]
[BlackTeamCountry "GEO"]
[TimeControl "40/5400+30:1800+30"]

1. e4 {[%emt 0:00:00]} c5 {[%emt 0:00:00]} 2. Nf3 {[%emt 0:00:00]} e6 {[%emt 0:
00:00]} 3. d4 {[%emt 0:00:10]} cxd4 {[%emt 0:00:00]} 4. Nxd4 {[%emt 0:00:13]}
Nc6 {[%emt 0:00:00]} 5. Nc3 {[%emt 0:00:44]} a6 {[%emt 0:00:00]} 6. Be2 {[%emt
0:00:46]} Nf6 {[%emt 0:00:17]} 7. O-O {[%emt 0:01:14]} d6 {[%emt 0:01:40]} 8.
Be3 {[%emt 0:01:33]} Be7 {[%emt 0:00:06]} 9. f4 {[%emt 0:01:27]} O-O {[%emt 0:
00:19]} 10. Qe1 {[%emt 0:03:48]} Nxd4 {[%emt 0:01:23]} 11. Bxd4 {[%emt 0:00:08]
} b5 {[%emt 0:00:37]} 12. a3 {[%emt 0:01:58]} Bb7 {[%emt 0:00:19]} 13. Bd3 {
[%emt 0:07:09]} Nd7 {[%emt 0:11:48]} 14. Qg3 {[%emt 0:05:05]} e5 {[%emt 0:04:
21]} 15. Be3 {[%emt 0:11:45]} Bh4 {[%emt 0:08:15]} 16. Qh3 {[%emt 0:08:35]}
exf4 {[%emt 0:18:20]} 17. Rxf4 {[%emt 0:03:54]} Bg5 {[%emt 0:03:52]} 18. e5 {
[%emt 0:04:05]} h6 {[%emt 0:09:38]} 19. Rg4 {[%emt 0:10:39]} Bxe3+ {[%emt 0:01:
35]} 20. Qxe3 {[%emt 0:02:30]} dxe5 {[%emt 0:02:19]} 21. Qg3 {[%emt 0:05:03]}
g5 {[%emt 0:03:57]} 22. Rf1 {[%emt 0:04:37]} Nc5 {[%emt 0:10:20]} 23. Qxe5 {
[%emt 0:08:08]} Nxd3 {[%emt 0:00:37]} 24. cxd3 {[%emt 0:00:04]} Qb6+ {[%emt 0:
03:04]} 25. d4 {[%emt 0:01:35]} f6 {[%emt 0:04:13]} 26. Qe3 {[%emt 0:02:22]} f5
{[%emt 0:06:09]} 27. Rg3 {[%emt 0:04:01]} Rae8 {[%emt 0:01:43]} 28. Qf2 {[%emt
0:03:18]} a5 {[%emt 0:01:21]} 29. b4 {[%emt 0:02:10]} axb4 {[%emt 0:00:15]} 30.
axb4 {[%emt 0:00:02]} Qd6 {[%emt 0:02:28]} 31. d5 {[%emt 0:01:27]} f4 {[%emt 0:
03:13]} 32. Rd3 {[%emt 0:00:17]} Qxb4 {[%emt 0:01:09]} 33. Qb6 {[%emt 0:01:25]}
Qe7 {[%emt 0:00:16]} 34. Qxh6 {[%emt 0:02:38]} b4 {[%emt 0:01:46]} 35. Ne4 {
[%emt 0:02:06]} Qg7 {[%emt 0:00:26]} 36. Qxg7+ {[%emt 0:00:24]} Kxg7 {[%emt 0:
00:01]} 37. Nd6 {[%emt 0:00:09]} Re7 {[%emt 0:00:51]} 38. Rb1 {[%emt 0:01:54]}
Rd7 {[%emt 0:01:11]} 39. Nxb7 {[%emt 0:00:24]} Rxb7 {[%emt 0:00:02]} 40. d6 {
[%emt 0:00:00]} Rd8 {[%emt 0:00:00]} 41. Rdb3 {[%emt 0:01:36]} Rxd6 {[%emt 0:
00:41]} 42. Rxb4 {[%emt 0:00:09]} Rxb4 {[%emt 0:00:10]} 1/2-1/2

[Event "ETCC Women 2013"]
[Site "Warsaw"]
[Date "2013.11.15"]
[Round "7"]
[White "Thorsteinsdottir, Hallgerdur"]
[Black "Kaps, Darja"]
[Result "1/2-1/2"]
[ECO "B12"]
[WhiteElo "1951"]
[BlackElo "2221"]
[PlyCount "141"]
[EventDate "2013.??.??"]
[EventCountry "POL"]
[WhiteTeam "Iceland"]
[BlackTeam "Slovenia"]
[WhiteTeamCountry "ISL"]
[BlackTeamCountry "SLO"]
[TimeControl "40/5400+30:1800+30"]

1. e4 {[%emt 0:00:00]} c6 {[%emt 0:00:00]} 2. d4 {[%emt 0:00:00]} g6 {[%emt 0:
00:00]} 3. Nc3 {[%emt 0:00:27]} d5 {[%emt 0:00:07]} 4. f4 {[%emt 0:09:07]} Bg7
{[%emt 0:01:16]} 5. Nf3 {[%emt 0:01:21]} Bg4 {[%emt 0:02:36]} 6. e5 {[%emt 0:
06:38]} h5 {[%emt 0:05:59]} 7. h3 {[%emt 0:06:54]} Bxf3 {[%emt 0:00:53]} 8.
Qxf3 {[%emt 0:00:07]} e6 {[%emt 0:00:06]} 9. h4 {[%emt 0:06:37]} Nh6 {[%emt 0:
05:30]} 10. Be3 {[%emt 0:00:59]} Bf8 {[%emt 0:03:04]} 11. Ne2 {[%emt 0:10:45]}
Nd7 {[%emt 0:04:25]} 12. c3 {[%emt 0:02:32]} a5 {[%emt 0:11:40]} 13. Nc1 {
[%emt 0:03:46]} a4 {[%emt 0:06:51]} 14. Nd3 {[%emt 0:02:52]} Be7 {[%emt 0:04:
59]} 15. g3 {[%emt 0:00:45]} Qc7 {[%emt 0:02:31]} 16. Be2 {[%emt 0:01:41]} Nf5
{[%emt 0:11:26]} 17. O-O {[%emt 0:03:30]} Kf8 {[%emt 0:06:15]} 18. Rfc1 {[%emt
0:05:40]} Kg7 {[%emt 0:00:56]} 19. Rc2 {[%emt 0:07:52]} c5 {[%emt 0:01:48]} 20.
dxc5 {[%emt 0:02:07]} Nxc5 {[%emt 0:01:39]} 21. Bxc5 {[%emt 0:03:10]} Bxc5+ {
[%emt 0:00:08]} 22. Nxc5 {[%emt 0:01:24]} Qxc5+ {[%emt 0:00:09]} 23. Qf2 {
[%emt 0:01:18]} Rhc8 {[%emt 0:01:53]} 24. Qxc5 {[%emt 0:02:06]} Rxc5 {[%emt 0:
00:07]} 25. Kf2 {[%emt 0:00:53]} Rac8 {[%emt 0:04:44]} 26. Rd2 {[%emt 0:08:22]}
a3 {[%emt 0:00:36]} 27. Bd3 {[%emt 0:01:16]} axb2 {[%emt 0:06:00]} 28. Rxb2 {
[%emt 0:01:28]} Rxc3 {[%emt 0:00:28]} 29. Bxf5 {[%emt 0:01:34]} gxf5 {[%emt 0:
00:06]} 30. Rxb7 {[%emt 0:04:54]} Rc2+ {[%emt 0:00:15]} 31. Kg1 {[%emt 0:04:38]
} Rc1+ {[%emt 0:00:14]} 32. Rxc1 {[%emt 0:00:02]} Rxc1+ {[%emt 0:00:05]} 33.
Kf2 {[%emt 0:00:13]} Rc2+ {[%emt 0:00:04]} 34. Kf3 {[%emt 0:00:50]} Rxa2 {
[%emt 0:00:07]} 35. Rd7 {[%emt 0:00:38]} Ra8 {[%emt 0:02:03]} 36. Ke3 {[%emt 0:
00:15]} Kg6 {[%emt 0:00:35]} 37. Re7 {[%emt 0:00:57]} Ra6 {[%emt 0:00:37]} 38.
Rd7 {[%emt 0:00:38]} f6 {[%emt 0:03:35]} 39. Re7 {[%emt 0:00:26]} fxe5 {[%emt
0:04:11]} 40. fxe5 {[%emt 0:00:00]} Ra3+ {[%emt 0:00:00]} 41. Kf2 {[%emt 0:07:
30]} f4 {[%emt 0:08:07]} 42. Rxe6+ {[%emt 0:01:47]} Kf5 {[%emt 0:00:19]} 43.
Rf6+ {[%emt 0:00:35]} Kxe5 {[%emt 0:00:13]} 44. Rxf4 {[%emt 0:00:26]} d4 {
[%emt 0:01:05]} 45. Rf8 {[%emt 0:01:13]} Ke4 {[%emt 0:00:54]} 46. Rf4+ {[%emt
0:00:39]} Ke5 {[%emt 0:00:04]} 47. Rf8 {[%emt 0:00:05]} Ra5 {[%emt 0:01:39]}
48. Kf3 {[%emt 0:01:18]} Ra1 {[%emt 0:00:59]} 49. Ke2 {[%emt 0:04:23]} Ra2+ {
[%emt 0:01:44]} 50. Kf3 {[%emt 0:00:30]} Ra7 {[%emt 0:09:11]} 51. Ke2 {[%emt 0:
02:58]} Rg7 {[%emt 0:01:51]} 52. Kf3 {[%emt 0:02:30]} Rg6 {[%emt 0:01:22]} 53.
Rf7 {[%emt 0:01:00]} Rg8 {[%emt 0:00:06]} 54. Re7+ {[%emt 0:09:09]} Kd5 {[%emt
0:01:05]} 55. Rf7 {[%emt 0:01:13]} Kc4 {[%emt 0:01:29]} 56. Rc7+ {[%emt 0:00:
18]} Kd3 {[%emt 0:01:15]} 57. Rc5 {[%emt 0:00:23]} Rf8+ {[%emt 0:01:20]} 58.
Kg2 {[%emt 0:00:08]} Rh8 {[%emt 0:03:47]} 59. Kf3 {[%emt 0:00:57]} Kd2 {[%emt
0:01:52]} 60. g4 {[%emt 0:00:52]} hxg4+ {[%emt 0:03:21]} 61. Kxg4 {[%emt 0:00:
02]} Rd8 {[%emt 0:01:24]} 62. h5 {[%emt 0:02:19]} d3 {[%emt 0:00:28]} 63. h6 {
[%emt 0:01:19]} Kd1 {[%emt 0:01:26]} 64. Kg5 {[%emt 0:00:50]} d2 {[%emt 0:00:
36]} 65. Ra5 {[%emt 0:00:07]} Ke2 {[%emt 0:03:11]} 66. Ra2 {[%emt 0:00:17]} Ke3
{[%emt 0:01:05]} 67. Rxd2 {[%emt 0:00:41]} Rxd2 {[%emt 0:00:26]} 68. h7 {[%emt
0:00:07]} Rh2 {[%emt 0:00:10]} 69. Kg6 {[%emt 0:00:07]} Kf4 {[%emt 0:00:25]}
70. Kg7 {[%emt 0:00:09]} Rxh7+ {[%emt 0:00:13]} 71. Kxh7 1/2-1/2

[Event "ETCC Women 2013"]
[Site "Warsaw"]
[Date "2013.11.15"]
[Round "7"]
[White "Tsolakidou, Stavroula"]
[Black "Nazarova, Anastasia"]
[Result "1/2-1/2"]
[ECO "B36"]
[WhiteElo "2117"]
[BlackElo "1727"]
[PlyCount "80"]
[EventDate "2013.??.??"]
[EventCountry "POL"]
[WhiteTeam "Greece"]
[BlackTeam "Finland"]
[WhiteTeamCountry "GRE"]
[BlackTeamCountry "FIN"]
[TimeControl "40/5400+30:1800+30"]

1. e4 {[%emt 0:00:00]} c5 {[%emt 0:00:00]} 2. Nf3 {[%emt 0:00:00]} g6 {[%emt 0:
00:00]} 3. d4 {[%emt 0:00:00]} cxd4 {[%emt 0:00:00]} 4. Nxd4 {[%emt 0:00:03]}
Nc6 {[%emt 0:00:23]} 5. c4 {[%emt 0:00:25]} Nf6 {[%emt 0:00:08]} 6. Nc3 {[%emt
0:00:18]} d6 {[%emt 0:00:06]} 7. Be2 {[%emt 0:00:43]} Nxd4 {[%emt 0:00:27]} 8.
Qxd4 {[%emt 0:00:09]} Bg7 {[%emt 0:00:03]} 9. Be3 {[%emt 0:00:24]} O-O {[%emt
0:00:06]} 10. Qd2 {[%emt 0:00:33]} a5 {[%emt 0:00:37]} 11. O-O {[%emt 0:01:02]}
a4 {[%emt 0:01:32]} 12. Rad1 {[%emt 0:00:35]} Be6 {[%emt 0:00:25]} 13. Bd4 {
[%emt 0:02:42]} Qa5 {[%emt 0:01:17]} 14. f4 {[%emt 0:01:23]} Rfc8 {[%emt 0:01:
57]} 15. b3 {[%emt 0:06:22]} axb3 {[%emt 0:01:01]} 16. axb3 {[%emt 0:00:17]}
Qb4 {[%emt 0:05:07]} 17. f5 {[%emt 0:02:34]} Bd7 {[%emt 0:04:56]} 18. Qe3 {
[%emt 0:17:16]} Ra5 {[%emt 0:17:52]} 19. fxg6 {[%emt 0:26:17]} hxg6 {[%emt 0:
00:52]} 20. Bxf6 {[%emt 0:01:22]} Bxf6 {[%emt 0:00:59]} 21. Nd5 {[%emt 0:00:45]
} Rxd5 {[%emt 0:10:13]} 22. exd5 {[%emt 0:12:04]} Be5 {[%emt 0:06:28]} 23. Bd3
{[%emt 0:11:40]} Kg7 {[%emt 0:05:27]} 24. Bb1 {[%emt 0:07:18]} Rh8 {[%emt 0:01:
12]} 25. g3 {[%emt 0:02:32]} Ra8 {[%emt 0:10:04]} 26. Rf2 {[%emt 0:04:19]} Ra3
{[%emt 0:00:46]} 27. Rdf1 {[%emt 0:00:10]} Be8 {[%emt 0:01:23]} 28. Bc2 {[%emt
0:00:22]} f6 {[%emt 0:02:39]} 29. g4 {[%emt 0:01:53]} Qxc4 {[%emt 0:01:35]} 30.
bxc4 {[%emt 0:00:43]} Rxe3 {[%emt 0:00:10]} 31. Rb1 {[%emt 0:00:39]} g5 {[%emt
0:01:50]} 32. Rxb7 {[%emt 0:00:36]} Bd4 {[%emt 0:00:50]} 33. Kf1 {[%emt 0:00:
18]} Kf8 {[%emt 0:00:49]} 34. Re2 {[%emt 0:00:06]} Rf3+ {[%emt 0:03:14]} 35.
Kg2 {[%emt 0:00:06]} Rf4 {[%emt 0:00:12]} 36. Bf5 {[%emt 0:00:33]} e5 {[%emt 0:
05:59]} 37. Rb8 {[%emt 0:01:01]} Ke7 {[%emt 0:00:14]} 38. Ra2 {[%emt 0:00:39]}
e4 {[%emt 0:02:29]} 39. Raa8 {[%emt 0:00:39]} Rf2+ {[%emt 0:00:13]} 40. Kg3 {
[%emt 0:00:00]} Rf3+ {[%emt 0:00:00]} 1/2-1/2

[Event "ETCC Women 2013"]
[Site "Warsaw"]
[Date "2013.11.15"]
[Round "7"]
[White "Tuominen, Tanja"]
[Black "Pavlidou, Ekaterini"]
[Result "1-0"]
[ECO "B30"]
[WhiteElo "2105"]
[BlackElo "2199"]
[PlyCount "65"]
[EventDate "2013.??.??"]
[EventCountry "POL"]
[WhiteTeam "Finland"]
[BlackTeam "Greece"]
[WhiteTeamCountry "FIN"]
[BlackTeamCountry "GRE"]
[TimeControl "40/5400+30:1800+30"]

1. e4 {[%emt 0:00:00]} c5 {[%emt 0:00:00]} 2. Nf3 {[%emt 0:00:00]} Nc6 {[%emt
0:00:39]} 3. c3 {[%emt 0:00:00]} d5 {[%emt 0:00:26]} 4. exd5 {[%emt 0:00:00]}
Qxd5 {[%emt 0:00:21]} 5. d4 {[%emt 0:00:00]} Bf5 {[%emt 0:00:48]} 6. Na3 {
[%emt 0:11:01]} cxd4 {[%emt 0:01:48]} 7. Bc4 {[%emt 0:03:59]} Qe4+ {[%emt 0:02:
22]} 8. Kf1 {[%emt 0:11:20]} e6 {[%emt 0:12:51]} 9. Nb5 {[%emt 0:05:22]} d3 {
[%emt 0:08:51]} 10. Nfd4 {[%emt 0:05:24]} Nxd4 {[%emt 0:03:31]} 11. Nxd4 {
[%emt 0:00:16]} O-O-O {[%emt 0:04:16]} 12. f3 {[%emt 0:05:41]} Qe5 {[%emt 0:04:
13]} 13. Bxd3 {[%emt 0:02:05]} Bc5 {[%emt 0:02:18]} 14. Bxf5 {[%emt 0:14:09]}
exf5 {[%emt 0:05:18]} 15. Qc2 {[%emt 0:00:55]} Qd5 {[%emt 0:18:36]} 16. Bf4 {
[%emt 0:06:49]} Ne7 {[%emt 0:03:21]} 17. Bg3 {[%emt 0:18:45]} Rhe8 {[%emt 0:03:
01]} 18. b3 {[%emt 0:10:16]} Bxd4 {[%emt 0:05:01]} 19. cxd4+ {[%emt 0:00:05]}
Nc6 {[%emt 0:00:44]} 20. Rd1 {[%emt 0:01:22]} g5 {[%emt 0:03:40]} 21. h4 {
[%emt 0:01:28]} f4 {[%emt 0:02:29]} 22. Bf2 {[%emt 0:00:21]} g4 {[%emt 0:01:13]
} 23. fxg4 {[%emt 0:00:31]} Re4 {[%emt 0:03:04]} 24. Kg1 {[%emt 0:00:40]} Kb8 {
[%emt 0:02:31]} 25. Kh2 {[%emt 0:00:56]} h5 {[%emt 0:02:03]} 26. gxh5 {[%emt 0:
00:31]} Rg8 {[%emt 0:02:10]} 27. Rhg1 {[%emt 0:00:08]} Rg4 {[%emt 0:02:52]} 28.
Qc5 {[%emt 0:00:27]} Qd8 {[%emt 0:00:54]} 29. Rge1 {[%emt 0:00:54]} Qg8 {[%emt
0:02:08]} 30. Rxe4 {[%emt 0:00:34]} Rxg2+ {[%emt 0:00:06]} 31. Kh1 {[%emt 0:00:
04]} Qg4 {[%emt 0:00:54]} 32. Qd6+ {[%emt 0:00:47]} Kc8 {[%emt 0:01:23]} 33.
Re8+ {[%emt 0:00:08]} 1-0

[Event "ETCC Women 2013"]
[Site "Warsaw"]
[Date "2013.11.15"]
[Round "7"]
[White "Unuk, Laura"]
[Black "Finnbogadottir, Tinna Kristin"]
[Result "1-0"]
[ECO "D09"]
[WhiteElo "1991"]
[BlackElo "1882"]
[PlyCount "111"]
[EventDate "2013.??.??"]
[EventCountry "POL"]
[WhiteTeam "Slovenia"]
[BlackTeam "Iceland"]
[WhiteTeamCountry "SLO"]
[BlackTeamCountry "ISL"]
[TimeControl "40/5400+30:1800+30"]

1. d4 {[%emt 0:00:00]} d5 {[%emt 0:00:00]} 2. c4 {[%emt 0:00:00]} e5 {[%emt 0:
00:00]} 3. dxe5 {[%emt 0:00:00]} d4 {[%emt 0:00:00]} 4. Nf3 {[%emt 0:00:00]}
Nc6 {[%emt 0:00:00]} 5. g3 {[%emt 0:00:30]} Nge7 {[%emt 0:00:31]} 6. Bg2 {
[%emt 0:02:03]} Ng6 {[%emt 0:00:18]} 7. Qb3 {[%emt 0:03:59]} Bb4+ {[%emt 0:00:
22]} 8. Nbd2 {[%emt 0:05:30]} O-O {[%emt 0:04:46]} 9. O-O {[%emt 0:02:54]} a5 {
[%emt 0:02:27]} 10. Rd1 {[%emt 0:11:47]} Bf5 {[%emt 0:08:15]} 11. a3 {[%emt 0:
08:42]} a4 {[%emt 0:01:13]} 12. Qa2 {[%emt 0:01:58]} Bc2 {[%emt 0:01:51]} 13.
Rf1 {[%emt 0:14:19]} Bxd2 {[%emt 0:11:46]} 14. Nxd2 {[%emt 0:04:49]} Ngxe5 {
[%emt 0:02:10]} 15. b4 {[%emt 0:04:58]} axb3 {[%emt 0:00:08]} 16. Nxb3 {[%emt
0:01:15]} Nb4 {[%emt 0:00:42]} 17. Qb2 {[%emt 0:07:39]} Nxc4 {[%emt 0:00:16]}
18. Qxd4 {[%emt 0:01:22]} Bxb3 {[%emt 0:00:10]} 19. Qc3 {[%emt 0:01:30]} Ba4 {
[%emt 0:27:18]} 20. Qxb4 {[%emt 0:13:33]} Nd6 {[%emt 0:01:37]} 21. Bf4 {[%emt
0:01:16]} Bc6 {[%emt 0:01:43]} 22. Bxc6 {[%emt 0:01:53]} bxc6 {[%emt 0:00:07]}
23. Rfd1 {[%emt 0:02:26]} Qe7 {[%emt 0:03:07]} 24. Bxd6 {[%emt 0:08:51]} cxd6 {
[%emt 0:00:06]} 25. Rxd6 {[%emt 0:00:12]} h6 {[%emt 0:04:41]} 26. e3 {[%emt 0:
00:50]} Rfc8 {[%emt 0:01:03]} 27. Rxc6 {[%emt 0:00:33]} Qxb4 {[%emt 0:02:01]}
28. Rxc8+ {[%emt 0:00:12]} Qf8 {[%emt 0:00:08]} 29. Rxf8+ {[%emt 0:00:05]} Kxf8
{[%emt 0:00:08]} 30. a4 {[%emt 0:01:07]} Ke7 {[%emt 0:00:09]} 31. a5 {[%emt 0:
00:36]} Kd6 {[%emt 0:00:24]} 32. Kg2 {[%emt 0:00:32]} Ra6 {[%emt 0:01:24]} 33.
f4 {[%emt 0:00:32]} f5 {[%emt 0:01:06]} 34. Kf3 {[%emt 0:00:18]} Kc5 {[%emt 0:
01:20]} 35. g4 {[%emt 0:00:34]} g6 {[%emt 0:00:38]} 36. h4 {[%emt 0:00:20]} Kd5
{[%emt 0:01:55]} 37. h5 {[%emt 0:00:50]} fxg4+ {[%emt 0:01:00]} 38. Kxg4 {
[%emt 0:00:09]} Ke4 {[%emt 0:02:07]} 39. Ra3 {[%emt 0:00:47]} gxh5+ {[%emt 0:
01:36]} 40. Kxh5 {[%emt 0:00:00]} Kf3 {[%emt 0:00:00]} 41. Kh4 {[%emt 0:03:19]}
Ke4 {[%emt 0:02:45]} 42. Kg3 {[%emt 0:00:52]} Rg6+ {[%emt 0:00:29]} 43. Kf2 {
[%emt 0:00:32]} Ra6 {[%emt 0:00:10]} 44. Ra4+ {[%emt 0:00:13]} Kf5 {[%emt 0:00:
17]} 45. Kf3 {[%emt 0:00:15]} Kf6 {[%emt 0:01:03]} 46. e4 {[%emt 0:02:17]} Kg6
{[%emt 0:00:49]} 47. Kg4 {[%emt 0:01:10]} Kf6 {[%emt 0:00:20]} 48. Kh5 {[%emt
0:01:20]} Kf7 {[%emt 0:00:54]} 49. f5 {[%emt 0:01:43]} Kg7 {[%emt 0:01:05]} 50.
e5 {[%emt 0:01:20]} Kf7 {[%emt 0:00:06]} 51. Ra3 {[%emt 0:01:14]} Ke7 {[%emt 0:
00:33]} 52. f6+ {[%emt 0:01:40]} Ke6 {[%emt 0:00:22]} 53. Kxh6 {[%emt 0:00:50]}
Kxe5 {[%emt 0:00:09]} 54. Kg7 {[%emt 0:00:07]} Ke6 {[%emt 0:01:13]} 55. f7 {
[%emt 0:00:14]} Ra7 {[%emt 0:00:09]} 56. Kg8 1-0

[Event "ETCC Women 2013"]
[Site "Warsaw"]
[Date "2013.11.15"]
[Round "7"]
[White "Ushenina, Anna"]
[Black "Kadziolka, Beata"]
[Result "1/2-1/2"]
[ECO "A87"]
[WhiteElo "2492"]
[BlackElo "2327"]
[PlyCount "80"]
[EventDate "2013.??.??"]
[EventCountry "POL"]
[WhiteTeam "Ukraine"]
[BlackTeam "Poland"]
[WhiteTeamCountry "UKR"]
[BlackTeamCountry "POL"]
[TimeControl "40/5400+30:1800+30"]

1. d4 {[%emt 0:00:00]} f5 {[%emt 0:00:00]} 2. Nf3 {[%emt 0:01:02]} Nf6 {[%emt
0:00:00]} 3. c4 {[%emt 0:00:53]} g6 {[%emt 0:00:01]} 4. g3 {[%emt 0:00:06]} Bg7
{[%emt 0:00:05]} 5. Bg2 {[%emt 0:00:04]} O-O {[%emt 0:00:20]} 6. O-O {[%emt 0:
00:05]} c6 {[%emt 0:00:07]} 7. Nc3 {[%emt 0:03:21]} Na6 {[%emt 0:00:21]} 8. a3
{[%emt 0:01:08]} Ne4 {[%emt 0:09:02]} 9. Qc2 {[%emt 0:04:38]} d5 {[%emt 0:04:
06]} 10. cxd5 {[%emt 0:11:19]} cxd5 {[%emt 0:02:56]} 11. Bf4 {[%emt 0:07:19]}
b6 {[%emt 0:25:03]} 12. Be5 {[%emt 0:09:37]} Bb7 {[%emt 0:06:03]} 13. Bxg7 {
[%emt 0:01:45]} Kxg7 {[%emt 0:00:04]} 14. Qb3 {[%emt 0:01:10]} Nxc3 {[%emt 0:
14:49]} 15. Qxc3 {[%emt 0:10:45]} Rc8 {[%emt 0:00:04]} 16. Qb3 {[%emt 0:00:20]}
Qd6 {[%emt 0:03:15]} 17. Ne5 {[%emt 0:05:27]} Nc7 {[%emt 0:05:55]} 18. e3 {
[%emt 0:00:45]} Ne8 {[%emt 0:01:37]} 19. Qa4 {[%emt 0:04:35]} a6 {[%emt 0:03:
26]} 20. Rfc1 {[%emt 0:03:51]} Nf6 {[%emt 0:00:46]} 21. Bf1 {[%emt 0:02:12]}
Rc7 {[%emt 0:08:16]} 22. Rxc7 {[%emt 0:05:08]} Qxc7 {[%emt 0:00:04]} 23. Nd3 {
[%emt 0:00:10]} Rc8 {[%emt 0:01:08]} 24. Qb4 {[%emt 0:05:26]} Qd6 {[%emt 0:06:
51]} 25. Qe1 {[%emt 0:07:54]} Ne4 {[%emt 0:03:01]} 26. Rc1 {[%emt 0:00:59]} Rc7
{[%emt 0:00:54]} 27. f3 {[%emt 0:06:37]} Nf6 {[%emt 0:00:17]} 28. a4 {[%emt 0:
01:10]} Nd7 {[%emt 0:01:10]} 29. Qd2 {[%emt 0:02:17]} a5 {[%emt 0:01:50]} 30.
Rxc7 {[%emt 0:01:46]} Qxc7 {[%emt 0:00:01]} 31. b4 {[%emt 0:00:33]} Kf7 {[%emt
0:01:34]} 32. Kf2 {[%emt 0:01:23]} Ba6 {[%emt 0:00:26]} 33. b5 {[%emt 0:00:19]}
Bb7 {[%emt 0:00:05]} 34. Be2 {[%emt 0:00:59]} e6 {[%emt 0:01:23]} 35. Qb2 {
[%emt 0:00:54]} Nf6 {[%emt 0:00:23]} 36. Ne5+ {[%emt 0:00:30]} Kg7 {[%emt 0:00:
18]} 37. Qa3 {[%emt 0:00:18]} Ne8 {[%emt 0:01:27]} 38. Bd3 {[%emt 0:00:31]} Nd6
{[%emt 0:00:11]} 39. h4 {[%emt 0:01:00]} Nf7 {[%emt 0:00:12]} 40. Nxf7 {[%emt
0:00:00]} Kxf7 {[%emt 0:00:00]} 1/2-1/2

[Event "ETCC Women 2013"]
[Site "Warsaw"]
[Date "2013.11.15"]
[Round "7"]
[White "Van Weersel, Arlette"]
[Black "Umudova, Nargiz"]
[Result "1-0"]
[ECO "B01"]
[WhiteElo "2180"]
[BlackElo "2253"]
[PlyCount "59"]
[EventDate "2013.??.??"]
[EventCountry "POL"]
[WhiteTeam "Netherlands"]
[BlackTeam "Azerbaijan"]
[WhiteTeamCountry "NED"]
[BlackTeamCountry "AZE"]
[TimeControl "40/5400+30:1800+30"]

1. e4 {[%emt 0:00:00]} d5 {[%emt 0:00:00]} 2. exd5 {[%emt 0:00:00]} Qxd5 {
[%emt 0:00:00]} 3. Nc3 {[%emt 0:00:00]} Qa5 {[%emt 0:00:00]} 4. Bc4 {[%emt 0:
00:02]} Nf6 {[%emt 0:02:16]} 5. d3 {[%emt 0:00:46]} Bg4 {[%emt 0:14:18]} 6.
Nge2 {[%emt 0:02:38]} c6 {[%emt 0:04:52]} 7. O-O {[%emt 0:03:58]} Nbd7 {[%emt
0:02:33]} 8. f3 {[%emt 0:05:59]} Qb6+ {[%emt 0:10:18]} 9. Kh1 {[%emt 0:03:02]}
Bf5 {[%emt 0:01:17]} 10. Ng3 {[%emt 0:04:28]} Bg6 {[%emt 0:01:36]} 11. f4 {
[%emt 0:02:12]} h6 {[%emt 0:22:45]} 12. f5 {[%emt 0:01:35]} Bh7 {[%emt 0:00:05]
} 13. Qe2 {[%emt 0:01:11]} Bg8 {[%emt 0:06:58]} 14. Rb1 {[%emt 0:04:11]} O-O-O
{[%emt 0:06:10]} 15. Be3 {[%emt 0:08:13]} Qc7 {[%emt 0:00:31]} 16. Bf4 {[%emt
0:01:25]} Qb6 {[%emt 0:00:57]} 17. b4 {[%emt 0:07:23]} a6 {[%emt 0:08:56]} 18.
a4 {[%emt 0:15:11]} e5 {[%emt 0:09:07]} 19. fxe6 {[%emt 0:06:51]} fxe6 {[%emt
0:00:12]} 20. b5 {[%emt 0:02:50]} axb5 {[%emt 0:02:49]} 21. axb5 {[%emt 0:01:
28]} Nd5 {[%emt 0:04:05]} 22. bxc6 {[%emt 0:05:02]} Qxc6 {[%emt 0:00:16]} 23.
Bxd5 {[%emt 0:04:42]} exd5 {[%emt 0:00:06]} 24. Nb5 {[%emt 0:00:22]} Bc5 {
[%emt 0:01:17]} 25. d4 {[%emt 0:00:31]} Bb6 {[%emt 0:00:29]} 26. Nd6+ {[%emt 0:
01:13]} Kb8 {[%emt 0:00:06]} 27. Nf7+ {[%emt 0:00:39]} Kc8 {[%emt 0:00:05]} 28.
Nxh8 {[%emt 0:00:28]} Bxd4 {[%emt 0:00:24]} 29. Nf5 {[%emt 0:00:34]} Bf6 {
[%emt 0:00:17]} 30. Nd6+ {[%emt 0:00:34]} 1-0

[Event "ETCC Women 2013"]
[Site "Warsaw"]
[Date "2013.11.15"]
[Round "7"]
[White "Voiska, Margarita"]
[Black "Michna, Marta"]
[Result "1-0"]
[ECO "A56"]
[WhiteElo "2298"]
[BlackElo "2357"]
[PlyCount "81"]
[EventDate "2013.??.??"]
[EventCountry "POL"]
[WhiteTeam "Bulgaria"]
[BlackTeam "Germany"]
[WhiteTeamCountry "BUL"]
[BlackTeamCountry "GER"]
[TimeControl "40/5400+30:1800+30"]

1. d4 {[%emt 0:00:00]} Nf6 {[%emt 0:00:30]} 2. c4 {[%emt 0:01:21]} c5 {[%emt 0:
04:46]} 3. d5 {[%emt 0:02:24]} e5 {[%emt 0:00:30]} 4. Nc3 d6 {[%emt 0:00:50]}
5. e4 Be7 6. g3 {[%emt 0:08:07]} O-O {[%emt 0:01:51]} 7. Bg2 {[%emt 0:00:25]}
Ne8 {[%emt 0:21:44]} 8. Nge2 {[%emt 0:05:09]} Nc7 {[%emt 0:06:58]} 9. O-O {
[%emt 0:06:08]} Nd7 {[%emt 0:09:30]} 10. a4 {[%emt 0:12:24]} Rb8 {[%emt 0:07:
05]} 11. Be3 {[%emt 0:04:36]} a6 {[%emt 0:04:51]} 12. a5 {[%emt 0:09:29]} b5 {
[%emt 0:01:40]} 13. axb6 {[%emt 0:00:09]} Nxb6 {[%emt 0:04:00]} 14. b3 {[%emt
0:06:30]} Bg5 {[%emt 0:03:53]} 15. f4 {[%emt 0:04:28]} Bh6 {[%emt 0:02:13]} 16.
Qd2 {[%emt 0:06:19]} Re8 {[%emt 0:02:05]} 17. Nc1 {[%emt 0:06:02]} Nd7 {[%emt
0:00:16]} 18. h3 {[%emt 0:05:50]} exf4 {[%emt 0:02:25]} 19. gxf4 {[%emt 0:05:
18]} Qh4 {[%emt 0:08:31]} 20. Rb1 {[%emt 0:03:38]} Nf6 {[%emt 0:00:36]} 21. f5
{[%emt 0:04:58]} Bxe3+ {[%emt 0:06:23]} 22. Qxe3 {[%emt 0:00:02]} Nd7 {[%emt 0:
02:20]} 23. Nd3 {[%emt 0:00:38]} Ne5 {[%emt 0:04:10]} 24. Nxe5 {[%emt 0:00:54]}
Rxe5 {[%emt 0:00:05]} 25. Na2 {[%emt 0:03:34]} a5 {[%emt 0:01:30]} 26. Nc1 {
[%emt 0:00:11]} a4 {[%emt 0:02:38]} 27. Nd3 {[%emt 0:00:09]} Re8 {[%emt 0:00:
04]} 28. bxa4 {[%emt 0:01:07]} Rxb1 {[%emt 0:00:10]} 29. Rxb1 {[%emt 0:00:02]}
Bxf5 {[%emt 0:00:30]} 30. Qf2 {[%emt 0:02:31]} Qxf2+ {[%emt 0:00:43]} 31. Nxf2
{[%emt 0:00:03]} Bc8 {[%emt 0:00:36]} 32. Rb6 {[%emt 0:00:32]} Rd8 {[%emt 0:00:
42]} 33. e5 {[%emt 0:01:36]} dxe5 {[%emt 0:00:34]} 34. Nd3 {[%emt 0:00:29]} f6
{[%emt 0:01:37]} 35. Nxc5 {[%emt 0:00:09]} Ne8 {[%emt 0:00:24]} 36. Ne4 {[%emt
0:01:44]} f5 {[%emt 0:00:18]} 37. Nc3 {[%emt 0:00:12]} Nd6 {[%emt 0:00:47]} 38.
c5 {[%emt 0:00:38]} Nc4 {[%emt 0:00:14]} 39. Rb8 {[%emt 0:00:16]} Kf8 {[%emt 0:
00:44]} 40. d6 {[%emt 0:00:00]} Ke8 {[%emt 0:00:00]} 41. Bc6+ {[%emt 0:08:37]}
1-0